[Event "Titled Tuesday Blitz March 07 Early 2023"]
[White "Chakravarthi Reddy, M"]
[Black "Pino Perez, Lazaro"]
[WhiteFideId "25009532"]
[BlackFideId "3517055"]
[WhiteElo "2201"]
[BlackElo "2170"]
[Result "0-1"]
[Round "07"]
[TimeControl "180+2"]
[Date "2023.03.07"]
[WhiteClock "0:00:38"]
[BlackClock "0:00:42"]

1. c4 {[%clk 0:03:00]}  c5 {[%clk 0:02:57]} 2. Nf3 {[%clk 0:02:57]}  g6 {[%clk 0:02:57]} 3. d4 {[%clk 0:02:56]}  cxd4 {[%clk 0:02:58]} 4. Nxd4 {[%clk 0:02:57]}  Nc6 {[%clk 0:02:58]} 5. Nc3 {[%clk 0:02:56]}  Nf6 {[%clk 0:02:53]} 6. e4 {[%clk 0:02:56]}  d6 {[%clk 0:02:54]} 7. Be3 {[%clk 0:02:56]}  Ng4 {[%clk 0:02:53]} 8. Nxc6 {[%clk 0:02:52]}  Nxe3 {[%clk 0:02:53]} 9. Nxd8 {[%clk 0:02:37]}  Nxd1 {[%clk 0:02:51]} 10. Nxd1 {[%clk 0:02:11]}  Kxd8 {[%clk 0:02:50]} 11. Ne3 {[%clk 0:02:12]}  Bh6 {[%clk 0:02:38]} 12. O-O-O {[%clk 0:02:11]}  Bxe3+ {[%clk 0:02:30]} 13. fxe3 {[%clk 0:02:12]}  Kc7 {[%clk 0:02:31]} 14. Be2 {[%clk 0:02:09]}  Be6 {[%clk 0:02:27]} 15. b3 {[%clk 0:02:07]}  h5 {[%clk 0:02:21]} 16. Kb2 {[%clk 0:02:07]}  a5 {[%clk 0:02:16]} 17. a4 {[%clk 0:02:04]}  h4 {[%clk 0:02:07]} 18. Rd2 {[%clk 0:02:02]}  f6 {[%clk 0:02:00]} 19. Rc1 {[%clk 0:01:54]}  Kb6 {[%clk 0:01:49]} 20. Bf3 {[%clk 0:01:51]}  Rac8 {[%clk 0:01:46]} 21. Rd4 {[%clk 0:01:35]}  Rc5 {[%clk 0:01:45]} 22. h3 {[%clk 0:01:33]}  Rg5 {[%clk 0:01:37]} 23. Rcd1 {[%clk 0:01:28]}  Kc7 {[%clk 0:01:36]} 24. R1d2 {[%clk 0:01:23]}  Rg3 {[%clk 0:01:31]} 25. Rc2 {[%clk 0:01:21]}  b6 {[%clk 0:01:26]} 26. Bd1 {[%clk 0:01:15]}  Rxe3 {[%clk 0:01:11]} 27. Bf3 {[%clk 0:01:11]}  Bxh3 {[%clk 0:01:06]} 28. Kc1 {[%clk 0:01:01]}  Rxb3 {[%clk 0:00:53]} 29. Rb2 {[%clk 0:00:54]}  Rxb2 {[%clk 0:00:53]} 30. Kxb2 {[%clk 0:00:55]}  Be6 {[%clk 0:00:52]} 31. Kc3 {[%clk 0:00:54]}  g5 {[%clk 0:00:52]} 32. Rd2 {[%clk 0:00:53]}  g4 {[%clk 0:00:51]} 33. Be2 {[%clk 0:00:53]}  h3 {[%clk 0:00:52]} 34. gxh3 {[%clk 0:00:54]}  gxh3 {[%clk 0:00:52]} 35. Bf3 {[%clk 0:00:54]}  h2 {[%clk 0:00:51]} 36. Bh1 {[%clk 0:00:55]}  Rh3+ {[%clk 0:00:50]} 37. Kd4 {[%clk 0:00:55]}  Bd7 {[%clk 0:00:48]} 38. Rg2 {[%clk 0:00:53]}  Bxa4 {[%clk 0:00:46]} 39. Rg7 {[%clk 0:00:52]}  Kd7 {[%clk 0:00:45]} 40. Rg2 {[%clk 0:00:47]}  Bb3 {[%clk 0:00:43]} 41. Rb2 {[%clk 0:00:46]}  a4 {[%clk 0:00:43]} 42. Rb1 {[%clk 0:00:40]}  Bc2 {[%clk 0:00:42]} 43. Rxb6 {[%clk 0:00:38]}  Rd3# {[%clk 0:00:42]} 0-1


[Site "https://www.chess.com"]

[Event "Titled Tuesday Blitz March 07 Early 2023"]
[White "SicilianPanzer"]
[Black "Bochnicka, Vladimir"]
[BlackFideId "14943450"]
[WhiteElo "2256"]
[BlackElo "2094"]
[Result "0-1"]
[Round "07"]
[TimeControl "180+2"]
[Date "2023.03.07"]
[WhiteClock "0:00:01"]
[BlackClock "0:00:39"]

1. d4 {[%clk 0:03:00]}  Nf6 {[%clk 0:02:54]} 2. c4 {[%clk 0:02:59]}  c5 {[%clk 0:02:50]} 3. d5 {[%clk 0:02:47]}  b5 {[%clk 0:02:50]} 4. cxb5 {[%clk 0:02:46]}  a6 {[%clk 0:02:50]} 5. f3 {[%clk 0:02:33]}  g6 {[%clk 0:02:41]} 6. e4 {[%clk 0:02:30]}  d6 {[%clk 0:02:41]} 7. Nc3 {[%clk 0:02:16]}  Bg7 {[%clk 0:02:41]} 8. Bc4 {[%clk 0:02:10]}  O-O {[%clk 0:02:40]} 9. a4 {[%clk 0:02:07]}  axb5 {[%clk 0:02:39]} 10. Nxb5 {[%clk 0:02:03]}  Nbd7 {[%clk 0:02:32]} 11. Be3 {[%clk 0:01:49]}  Nb6 {[%clk 0:02:32]} 12. b3 {[%clk 0:01:44]}  Nfd7 {[%clk 0:02:25]} 13. Ra2 {[%clk 0:01:32]}  Ne5 {[%clk 0:02:24]} 14. Qc2 {[%clk 0:01:25]}  f5 {[%clk 0:02:21]} 15. Ne2 {[%clk 0:01:10]}  fxe4 {[%clk 0:02:18]} 16. fxe4 {[%clk 0:01:09]}  Qd7 {[%clk 0:02:07]} 17. Rf1 {[%clk 0:00:43]}  Rxf1+ {[%clk 0:01:58]} 18. Kxf1 {[%clk 0:00:40]}  Qg4 {[%clk 0:01:39]} 19. Ng3 {[%clk 0:00:37]}  Bd7 {[%clk 0:01:35]} 20. Be2 {[%clk 0:00:21]}  Qh4 {[%clk 0:01:30]} 21. Kg1 {[%clk 0:00:19]}  Bxb5 {[%clk 0:01:20]} 22. axb5 {[%clk 0:00:15]}  Rf8 {[%clk 0:01:20]} 23. Ra6 {[%clk 0:00:13]}  Nbd7 {[%clk 0:01:20]} 24. b6 {[%clk 0:00:12]}  Nf6 {[%clk 0:01:13]} 25. b7 {[%clk 0:00:08]}  Nfg4 {[%clk 0:01:14]} 26. Bxg4 {[%clk 0:00:03]}  Nxg4 {[%clk 0:01:14]} 27. h3 {[%clk 0:00:02]}  Nxe3 {[%clk 0:01:14]} 28. Qe2 {[%clk 0:00:01]}  Qxg3 {[%clk 0:01:13]} 29. Ra8 {[%clk 0:00:01]}  Bd4 {[%clk 0:00:59]} 30. Rxf8+ {[%clk 0:00:01]}  Kg7 {[%clk 0:00:41]} 31. Rf3 {[%clk 0:00:01]}  Ng4+ {[%clk 0:00:39]} 32. Kh1 {[%clk 0:00:01]}  Qh2# {[%clk 0:00:39]} 0-1


[Site "https://www.chess.com"]

[Event "Titled Tuesday Blitz March 07 Early 2023"]
[White "Zhukova, Natalia"]
[Black "Kohler, Aran"]
[WhiteFideId "14101513"]
[BlackFideId "1002856"]
[WhiteElo "2297"]
[BlackElo "2247"]
[Result "1-0"]
[Round "07"]
[TimeControl "180+2"]
[Date "2023.03.07"]
[WhiteClock "0:00:15"]
[BlackClock "0:00:15"]

1. c4 {[%clk 0:03:00]}  e5 {[%clk 0:02:58]} 2. Nc3 {[%clk 0:03:01]}  Nf6 {[%clk 0:02:58]} 3. Nf3 {[%clk 0:03:02]}  e4 {[%clk 0:02:58]} 4. Ng5 {[%clk 0:03:00]}  b5 {[%clk 0:02:59]} 5. Ngxe4 {[%clk 0:02:47]}  Nxe4 {[%clk 0:02:54]} 6. Nxe4 {[%clk 0:02:47]}  bxc4 {[%clk 0:02:54]} 7. d4 {[%clk 0:02:40]}  d5 {[%clk 0:02:50]} 8. Ng3 {[%clk 0:02:35]}  Bb4+ {[%clk 0:02:45]} 9. Bd2 {[%clk 0:02:35]}  Qe7 {[%clk 0:02:42]} 10. Qa4+ {[%clk 0:02:32]}  Nd7 {[%clk 0:02:35]} 11. Bxb4 {[%clk 0:02:20]}  Qe6 {[%clk 0:02:34]} 12. e3 {[%clk 0:02:17]}  Bb7 {[%clk 0:02:19]} 13. Be2 {[%clk 0:02:13]}  a5 {[%clk 0:02:12]} 14. Ba3 {[%clk 0:02:12]}  Bc6 {[%clk 0:02:09]} 15. Qc2 {[%clk 0:02:11]}  g6 {[%clk 0:02:03]} 16. e4 {[%clk 0:02:02]}  Nb6 {[%clk 0:01:42]} 17. e5 {[%clk 0:01:33]}  f6 {[%clk 0:01:35]} 18. exf6 {[%clk 0:01:25]}  Qxf6 {[%clk 0:01:21]} 19. O-O {[%clk 0:01:25]}  Kf7 {[%clk 0:01:21]} 20. Qd2 {[%clk 0:01:20]}  h5 {[%clk 0:01:17]} 21. h3 {[%clk 0:01:02]}  Rae8 {[%clk 0:01:07]} 22. Bf3 {[%clk 0:00:58]}  a4 {[%clk 0:01:04]} 23. Rae1 {[%clk 0:00:54]}  h4 {[%clk 0:00:51]} 24. Rxe8 {[%clk 0:00:49]}  Rxe8 {[%clk 0:00:49]} 25. Ne2 {[%clk 0:00:49]}  g5 {[%clk 0:00:49]} 26. Nc3 {[%clk 0:00:46]}  Qf5 {[%clk 0:00:39]} 27. Re1 {[%clk 0:00:44]}  Qd3 {[%clk 0:00:25]} 28. Qxd3 {[%clk 0:00:28]}  cxd3 {[%clk 0:00:23]} 29. Rxe8 {[%clk 0:00:26]}  Kxe8 {[%clk 0:00:22]} 30. Kf1 {[%clk 0:00:26]}  Kf7 {[%clk 0:00:20]} 31. Ke1 {[%clk 0:00:26]}  Nc4 {[%clk 0:00:17]} 32. Bxd5+ {[%clk 0:00:22]}  Bxd5 {[%clk 0:00:17]} 33. Nxd5 {[%clk 0:00:23]}  Ke6 {[%clk 0:00:14]} 34. Nb4 {[%clk 0:00:22]}  d2+ {[%clk 0:00:14]} 35. Kd1 {[%clk 0:00:21]}  Kf5 {[%clk 0:00:14]} 36. Nd5 {[%clk 0:00:17]}  Ke4 {[%clk 0:00:14]} 37. Ne3 {[%clk 0:00:15]}  Kxd4 {[%clk 0:00:14]} 38. Nxc4 {[%clk 0:00:14]}  Kxc4 {[%clk 0:00:14]} 39. Kxd2 {[%clk 0:00:15]}  Kd4 {[%clk 0:00:15]} 40. Be7 {[%clk 0:00:15]} 1-0


[Site "https://www.chess.com"]

[Event "Titled Tuesday Blitz March 07 Early 2023"]
[White "sissahungrychess"]
[Black "Fajdetic, Hrvoje"]
[BlackFideId "14501945"]
[WhiteElo "2397"]
[BlackElo "2185"]
[Result "1-0"]
[Round "07"]
[TimeControl "180+2"]
[Date "2023.03.07"]
[WhiteClock "0:02:09"]
[BlackClock "0:02:05"]

1. c4 {[%clk 0:02:59]}  c5 {[%clk 0:02:52]} 2. Nc3 {[%clk 0:02:57]}  Nc6 {[%clk 0:02:51]} 3. Nf3 {[%clk 0:02:57]}  g6 {[%clk 0:02:52]} 4. g3 {[%clk 0:02:56]}  Bg7 {[%clk 0:02:52]} 5. Bg2 {[%clk 0:02:57]}  e5 {[%clk 0:02:52]} 6. O-O {[%clk 0:02:57]}  d6 {[%clk 0:02:52]} 7. Ne1 {[%clk 0:02:57]}  Nge7 {[%clk 0:02:52]} 8. Nc2 {[%clk 0:02:57]}  O-O {[%clk 0:02:51]} 9. Ne3 {[%clk 0:02:56]}  f5 {[%clk 0:02:47]} 10. d3 {[%clk 0:02:54]}  f4 {[%clk 0:02:42]} 11. Ned5 {[%clk 0:02:54]}  g5 {[%clk 0:02:41]} 12. Rb1 {[%clk 0:02:51]}  Qe8 {[%clk 0:02:38]} 13. e3 {[%clk 0:02:37]}  Ng6 {[%clk 0:02:26]} 14. Nc7 {[%clk 0:02:21]}  Qf7 {[%clk 0:02:22]} 15. Bd5 {[%clk 0:02:13]}  Rb8 {[%clk 0:02:13]} 16. exf4 {[%clk 0:02:09]}  gxf4 {[%clk 0:02:12]} 17. Ne4 {[%clk 0:02:09]}  h6 {[%clk 0:02:05]} 18. Nxd6 {[%clk 0:02:09]} 1-0


[Site "https://www.chess.com"]

[Event "Titled Tuesday Blitz March 07 Early 2023"]
[White "Grabinsky, Vladimir"]
[Black "Bas Mas, Jose Joaquin"]
[WhiteFideId "14107074"]
[BlackFideId "22219064"]
[WhiteElo "2027"]
[BlackElo "2233"]
[Result "0-1"]
[Round "07"]
[TimeControl "180+2"]
[Date "2023.03.07"]
[WhiteClock "0:00:06"]
[BlackClock "0:00:31"]

1. e4 {[%clk 0:03:00]}  e6 {[%clk 0:02:59]} 2. Nf3 {[%clk 0:02:58]}  d5 {[%clk 0:03:00]} 3. e5 {[%clk 0:02:58]}  c5 {[%clk 0:02:59]} 4. b4 {[%clk 0:02:58]}  b6 {[%clk 0:02:59]} 5. c3 {[%clk 0:02:55]}  Qd7 {[%clk 0:02:58]} 6. a3 {[%clk 0:02:52]}  Ba6 {[%clk 0:02:58]} 7. Bxa6 {[%clk 0:02:40]}  Nxa6 {[%clk 0:02:57]} 8. d4 {[%clk 0:02:40]}  Ne7 {[%clk 0:02:54]} 9. O-O {[%clk 0:02:36]}  Nc7 {[%clk 0:02:52]} 10. Nbd2 {[%clk 0:02:27]}  Nc6 {[%clk 0:02:50]} 11. Qe2 {[%clk 0:02:17]}  Be7 {[%clk 0:02:36]} 12. dxc5 {[%clk 0:02:11]}  bxc5 {[%clk 0:02:35]} 13. Nb3 {[%clk 0:02:12]}  O-O {[%clk 0:02:13]} 14. Rd1 {[%clk 0:01:52]}  c4 {[%clk 0:02:02]} 15. Nbd4 {[%clk 0:01:47]}  Nxd4 {[%clk 0:01:49]} 16. Nxd4 {[%clk 0:01:41]}  Qa4 {[%clk 0:01:49]} 17. Qg4 {[%clk 0:01:29]}  Rfb8 {[%clk 0:01:43]} 18. Bh6 {[%clk 0:01:28]}  Bf8 {[%clk 0:01:43]} 19. h4 {[%clk 0:01:17]}  a5 {[%clk 0:01:42]} 20. h5 {[%clk 0:01:13]}  axb4 {[%clk 0:01:39]} 21. Bxg7 {[%clk 0:01:13]}  Bxg7 {[%clk 0:01:39]} 22. h6 {[%clk 0:01:13]}  Ne8 {[%clk 0:01:40]} 23. cxb4 {[%clk 0:01:04]}  Qd7 {[%clk 0:01:23]} 24. b5 {[%clk 0:00:50]}  Kh8 {[%clk 0:01:13]} 25. hxg7+ {[%clk 0:00:49]}  Nxg7 {[%clk 0:01:14]} 26. a4 {[%clk 0:00:47]}  Rg8 {[%clk 0:01:13]} 27. Qh4 {[%clk 0:00:36]}  Qc7 {[%clk 0:01:01]} 28. Qf6 {[%clk 0:00:33]}  c3 {[%clk 0:00:53]} 29. Rdc1 {[%clk 0:00:20]}  Qc4 {[%clk 0:00:50]} 30. Nc6 {[%clk 0:00:19]}  d4 {[%clk 0:00:46]} 31. Ne7 {[%clk 0:00:18]}  d3 {[%clk 0:00:46]} 32. Nxg8 {[%clk 0:00:18]}  Rxg8 {[%clk 0:00:47]} 33. b6 {[%clk 0:00:14]}  d2 {[%clk 0:00:45]} 34. Rc2 {[%clk 0:00:14]}  Qe4 {[%clk 0:00:37]} 35. Rxc3 {[%clk 0:00:09]}  Qe1+ {[%clk 0:00:34]} 36. Rxe1 {[%clk 0:00:09]}  dxe1=Q+ {[%clk 0:00:34]} 37. Kh2 {[%clk 0:00:09]}  Qxc3 {[%clk 0:00:34]} 38. b7 {[%clk 0:00:07]}  Qb4 {[%clk 0:00:34]} 39. Qe7 {[%clk 0:00:06]}  Qxe7 {[%clk 0:00:31]} 0-1


[Site "https://www.chess.com"]

[Event "Titled Tuesday Blitz March 07 Early 2023"]
[White "Andrews, Todd"]
[Black "Rosh Jain"]
[WhiteFideId "2012456"]
[BlackFideId "25789465"]
[WhiteElo "2390"]
[BlackElo "2233"]
[Result "1-0"]
[Round "07"]
[TimeControl "180+2"]
[Date "2023.03.07"]
[WhiteClock "0:00:14"]
[BlackClock "0:00:16"]

1. e4 {[%clk 0:03:00]}  c5 {[%clk 0:02:59]} 2. Nf3 {[%clk 0:02:59]}  d6 {[%clk 0:02:59]} 3. d4 {[%clk 0:02:58]}  cxd4 {[%clk 0:03:00]} 4. Nxd4 {[%clk 0:02:59]}  Nf6 {[%clk 0:03:00]} 5. Nc3 {[%clk 0:02:59]}  a6 {[%clk 0:03:00]} 6. Bc4 {[%clk 0:02:59]}  e6 {[%clk 0:02:59]} 7. Bb3 {[%clk 0:02:59]}  Be7 {[%clk 0:02:59]} 8. Qe2 {[%clk 0:02:57]}  O-O {[%clk 0:02:59]} 9. g4 {[%clk 0:02:57]}  b5 {[%clk 0:02:59]} 10. g5 {[%clk 0:02:57]}  Nfd7 {[%clk 0:02:58]} 11. h4 {[%clk 0:02:57]}  Nc5 {[%clk 0:02:57]} 12. Be3 {[%clk 0:02:56]}  b4 {[%clk 0:02:55]} 13. Na4 {[%clk 0:02:55]}  Nxe4 {[%clk 0:02:54]} 14. O-O-O {[%clk 0:02:51]}  Bd7 {[%clk 0:02:51]} 15. Nxe6 {[%clk 0:02:18]}  fxe6 {[%clk 0:02:32]} 16. Bb6 {[%clk 0:02:18]}  Bxg5+ {[%clk 0:02:04]} 17. Kb1 {[%clk 0:01:51]}  Qe7 {[%clk 0:02:02]} 18. Qxe4 {[%clk 0:01:46]}  d5 {[%clk 0:01:45]} 19. Rxd5 {[%clk 0:00:51]}  exd5 {[%clk 0:01:14]} 20. Qxd5+ {[%clk 0:00:49]}  Kh8 {[%clk 0:01:13]} 21. hxg5 {[%clk 0:00:42]}  Bc6 {[%clk 0:01:11]} 22. g6 {[%clk 0:00:15]}  Bxd5 {[%clk 0:00:26]} 23. Rxh7+ {[%clk 0:00:14]}  Kg8 {[%clk 0:00:24]} 24. Bxd5+ {[%clk 0:00:15]}  Rf7 {[%clk 0:00:24]} 25. Bxf7+ {[%clk 0:00:14]}  Qxf7 {[%clk 0:00:22]} 26. gxf7+ {[%clk 0:00:15]}  Kxf7 {[%clk 0:00:23]} 27. Rh8 {[%clk 0:00:15]}  a5 {[%clk 0:00:22]} 28. b3 {[%clk 0:00:14]}  g6 {[%clk 0:00:19]} 29. Bc7 {[%clk 0:00:14]}  Ra7 {[%clk 0:00:16]} 30. Bxb8 {[%clk 0:00:14]}  Ra6 {[%clk 0:00:16]} 1-0


[Site "https://www.chess.com"]

[Event "Titled Tuesday Blitz March 07 Early 2023"]
[White "Bashirli, Saadat"]
[Black "Leve, Nitai"]
[WhiteFideId "13429990"]
[BlackFideId "2006898"]
[WhiteElo "1408"]
[BlackElo "2144"]
[Result "0-1"]
[Round "07"]
[TimeControl "180+2"]
[Date "2023.03.07"]
[WhiteClock "0:01:12"]
[BlackClock "0:01:13"]

1. e4 {[%clk 0:03:00]}  e6 {[%clk 0:02:58]} 2. d4 {[%clk 0:02:59]}  d5 {[%clk 0:02:58]} 3. Nc3 {[%clk 0:02:58]}  Nf6 {[%clk 0:02:51]} 4. Bg5 {[%clk 0:02:56]}  dxe4 {[%clk 0:02:49]} 5. Nxe4 {[%clk 0:02:55]}  Be7 {[%clk 0:02:50]} 6. Bxf6 {[%clk 0:02:52]}  gxf6 {[%clk 0:02:50]} 7. Nf3 {[%clk 0:02:52]}  f5 {[%clk 0:02:43]} 8. Ng3 {[%clk 0:02:38]}  a6 {[%clk 0:02:40]} 9. Bd3 {[%clk 0:02:35]}  b5 {[%clk 0:02:40]} 10. c3 {[%clk 0:02:28]}  Bb7 {[%clk 0:02:38]} 11. O-O {[%clk 0:02:25]}  Nd7 {[%clk 0:02:35]} 12. Re1 {[%clk 0:02:15]}  Kf8 {[%clk 0:02:15]} 13. Qd2 {[%clk 0:02:13]}  h5 {[%clk 0:02:06]} 14. Ne5 {[%clk 0:01:54]}  h4 {[%clk 0:01:40]} 15. Nxd7+ {[%clk 0:01:51]}  Qxd7 {[%clk 0:01:39]} 16. Ne2 {[%clk 0:01:46]}  Rg8 {[%clk 0:01:36]} 17. Nf4 {[%clk 0:01:44]}  Bg5 {[%clk 0:01:34]} 18. Bf1 {[%clk 0:01:39]}  Qd6 {[%clk 0:01:29]} 19. g3 {[%clk 0:01:31]}  hxg3 {[%clk 0:01:20]} 20. fxg3 {[%clk 0:01:19]}  Bxf4 {[%clk 0:01:18]} 21. Qf2 {[%clk 0:01:14]}  Bxg3 {[%clk 0:01:15]} 22. hxg3 {[%clk 0:01:13]}  Rxg3+ {[%clk 0:01:16]} 23. Kh2 {[%clk 0:01:12]}  Rg2+ {[%clk 0:01:13]} 0-1


[Site "https://www.chess.com"]

[Event "Titled Tuesday Blitz March 07 Early 2023"]
[White "Tyagi, Kushan"]
[Black "Sailer, Mike"]
[WhiteFideId "2040069"]
[BlackFideId "2012901"]
[WhiteElo "2352"]
[BlackElo "2109"]
[Result "1-0"]
[Round "07"]
[TimeControl "180+2"]
[Date "2023.03.07"]
[WhiteClock "0:00:08"]
[BlackClock "0:00:04"]

1. d4 {[%clk 0:02:57]}  d5 {[%clk 0:02:59]} 2. c4 {[%clk 0:02:57]}  Bf5 {[%clk 0:02:59]} 3. cxd5 {[%clk 0:02:46]}  Bxb1 {[%clk 0:02:59]} 4. Rxb1 {[%clk 0:02:46]}  Qxd5 {[%clk 0:02:59]} 5. a3 {[%clk 0:02:41]}  Nc6 {[%clk 0:02:59]} 6. Nf3 {[%clk 0:02:39]}  O-O-O {[%clk 0:02:59]} 7. Bf4 {[%clk 0:02:08]}  Nxd4 {[%clk 0:02:41]} 8. Nxd4 {[%clk 0:02:05]}  Qxd4 {[%clk 0:02:41]} 9. Qxd4 {[%clk 0:02:05]}  Rxd4 {[%clk 0:02:41]} 10. e3 {[%clk 0:02:05]}  Rd7 {[%clk 0:02:33]} 11. Be2 {[%clk 0:01:50]}  Nf6 {[%clk 0:02:31]} 12. O-O {[%clk 0:01:46]}  e6 {[%clk 0:02:31]} 13. Rfc1 {[%clk 0:01:41]}  Bd6 {[%clk 0:02:18]} 14. Bxd6 {[%clk 0:01:03]}  Rxd6 {[%clk 0:02:17]} 15. Rc2 {[%clk 0:01:04]}  Rhd8 {[%clk 0:02:14]} 16. Rbc1 {[%clk 0:01:03]}  c6 {[%clk 0:01:57]} 17. b4 {[%clk 0:01:03]}  Rd2 {[%clk 0:01:47]} 18. b5 {[%clk 0:01:02]}  Rxc2 {[%clk 0:01:47]} 19. Rxc2 {[%clk 0:01:02]}  Rd6 {[%clk 0:01:33]} 20. a4 {[%clk 0:00:52]}  Kd7 {[%clk 0:01:27]} 21. bxc6+ {[%clk 0:00:50]}  bxc6 {[%clk 0:01:25]} 22. Rb2 {[%clk 0:00:48]}  Kc7 {[%clk 0:01:20]} 23. a5 {[%clk 0:00:48]}  Rd8 {[%clk 0:01:00]} 24. h4 {[%clk 0:00:36]}  Rb8 {[%clk 0:00:57]} 25. Rc2 {[%clk 0:00:36]}  Nd5 {[%clk 0:00:50]} 26. g4 {[%clk 0:00:35]}  Rb4 {[%clk 0:00:44]} 27. Kg2 {[%clk 0:00:35]}  Ra4 {[%clk 0:00:36]} 28. a6 {[%clk 0:00:27]}  Kb6 {[%clk 0:00:14]} 29. Rb2+ {[%clk 0:00:22]}  Rb4 {[%clk 0:00:13]} 30. Ra2 {[%clk 0:00:21]}  c5 {[%clk 0:00:13]} 31. Bd3 {[%clk 0:00:20]}  h6 {[%clk 0:00:11]} 32. Kg3 {[%clk 0:00:20]}  c4 {[%clk 0:00:11]} 33. Bf1 {[%clk 0:00:17]}  c3 {[%clk 0:00:08]} 34. Rc2 {[%clk 0:00:15]}  Rb2 {[%clk 0:00:06]} 35. Rc1 {[%clk 0:00:15]}  Kc5 {[%clk 0:00:05]} 36. e4 {[%clk 0:00:14]}  Nb4 {[%clk 0:00:01]} 37. Rxc3+ {[%clk 0:00:14]}  Kd4 {[%clk 0:00:02]} 38. Rc7 {[%clk 0:00:13]}  Kxe4 {[%clk 0:00:03]} 39. Rxf7 {[%clk 0:00:12]}  Rb1 {[%clk 0:00:03]} 40. Be2 {[%clk 0:00:10]}  Rb2 {[%clk 0:00:02]} 41. Bf3+ {[%clk 0:00:09]}  Ke5 {[%clk 0:00:03]} 42. Rxa7 {[%clk 0:00:08]}  Nd3 {[%clk 0:00:03]} 43. Rf7 {[%clk 0:00:08]}  Rb3 {[%clk 0:00:04]} 44. a7 {[%clk 0:00:08]}  Ra3 {[%clk 0:00:04]} 45. a8=Q {[%clk 0:00:08]} 1-0


[Site "https://www.chess.com"]

[Event "Titled Tuesday Blitz March 07 Early 2023"]
[White "Aanan, Shafiuddin"]
[Black "Vaglio Munoz, Jaime"]
[WhiteFideId "3242633"]
[BlackFideId "6500145"]
[WhiteElo "1648"]
[BlackElo "2199"]
[Result "0-1"]
[Round "07"]
[TimeControl "180+2"]
[Date "2023.03.07"]
[WhiteClock "0:00:10"]
[BlackClock "0:00:26"]

1. e4 {[%clk 0:03:00]}  c6 {[%clk 0:02:58]} 2. d4 {[%clk 0:03:00]}  d5 {[%clk 0:02:58]} 3. e5 {[%clk 0:03:00]}  Bf5 {[%clk 0:02:57]} 4. h4 {[%clk 0:02:59]}  h5 {[%clk 0:02:56]} 5. Bd3 {[%clk 0:02:59]}  Bxd3 {[%clk 0:02:56]} 6. Qxd3 {[%clk 0:03:00]}  Qa5+ {[%clk 0:02:55]} 7. Nd2 {[%clk 0:02:59]}  e6 {[%clk 0:02:50]} 8. Nf3 {[%clk 0:02:57]}  Nh6 {[%clk 0:02:49]} 9. O-O {[%clk 0:02:57]}  Qa6 {[%clk 0:02:47]} 10. c4 {[%clk 0:02:56]}  Nf5 {[%clk 0:02:44]} 11. Qc3 {[%clk 0:02:55]}  Nd7 {[%clk 0:02:44]} 12. b3 {[%clk 0:02:39]}  Be7 {[%clk 0:02:40]} 13. a4 {[%clk 0:02:34]}  Nxh4 {[%clk 0:02:36]} 14. Nxh4 {[%clk 0:02:33]}  Bxh4 {[%clk 0:02:36]} 15. Ba3 {[%clk 0:02:33]}  Be7 {[%clk 0:02:17]} 16. Bxe7 {[%clk 0:02:32]}  Kxe7 {[%clk 0:02:18]} 17. Qb4+ {[%clk 0:02:08]}  Ke8 {[%clk 0:02:16]} 18. a5 {[%clk 0:02:08]}  h4 {[%clk 0:01:58]} 19. Qd6 {[%clk 0:02:00]}  Rd8 {[%clk 0:01:48]} 20. Rfc1 {[%clk 0:01:51]}  h3 {[%clk 0:01:42]} 21. g3 {[%clk 0:01:50]}  Nf6 {[%clk 0:01:36]} 22. Qc5 {[%clk 0:01:39]}  Ng4 {[%clk 0:01:22]} 23. b4 {[%clk 0:01:33]}  b5 {[%clk 0:00:45]} 24. cxb5 {[%clk 0:01:05]}  Qxb5 {[%clk 0:00:32]} 25. Nf3 {[%clk 0:00:52]}  Qe2 {[%clk 0:00:27]} 26. Qxc6+ {[%clk 0:00:51]}  Kf8 {[%clk 0:00:28]} 27. Qc5+ {[%clk 0:00:16]}  Kg8 {[%clk 0:00:27]} 28. Rc2 {[%clk 0:00:10]}  Qxf3 {[%clk 0:00:26]} 0-1


[Site "https://www.chess.com"]

[Event "Titled Tuesday Blitz March 07 Early 2023"]
[White "Matveeva, Olga"]
[Black "Lorenzo De La Riva, Lazaro"]
[WhiteFideId "24107018"]
[BlackFideId "2268809"]
[WhiteElo "2056"]
[BlackElo "2294"]
[Result "1-0"]
[Round "07"]
[TimeControl "180+2"]
[Date "2023.03.07"]
[WhiteClock "0:00:11"]
[BlackClock "0:00:03"]

1. d4 {[%clk 0:03:00]}  Nf6 {[%clk 0:01:54]} 2. c4 {[%clk 0:03:00]}  e6 {[%clk 0:01:53]} 3. g3 {[%clk 0:03:00]}  c6 {[%clk 0:01:52]} 4. Bg2 {[%clk 0:02:59]}  d5 {[%clk 0:01:47]} 5. Nf3 {[%clk 0:02:56]}  Be7 {[%clk 0:01:45]} 6. O-O {[%clk 0:02:55]}  O-O {[%clk 0:01:44]} 7. Qc2 {[%clk 0:02:54]}  b6 {[%clk 0:01:33]} 8. Nbd2 {[%clk 0:02:53]}  Bb7 {[%clk 0:01:18]} 9. e4 {[%clk 0:02:53]}  Na6 {[%clk 0:01:01]} 10. e5 {[%clk 0:02:31]}  Nd7 {[%clk 0:01:00]} 11. cxd5 {[%clk 0:02:30]}  cxd5 {[%clk 0:00:59]} 12. Re1 {[%clk 0:02:27]}  Rc8 {[%clk 0:00:54]} 13. Qa4 {[%clk 0:02:26]}  Ndb8 {[%clk 0:00:52]} 14. Bf1 {[%clk 0:02:23]}  Bc6 {[%clk 0:00:51]} 15. Qd1 {[%clk 0:02:18]}  Qd7 {[%clk 0:00:49]} 16. Qb3 {[%clk 0:02:00]}  Ba4 {[%clk 0:00:47]} 17. Qe3 {[%clk 0:01:56]}  Nb4 {[%clk 0:00:47]} 18. Bd3 {[%clk 0:01:45]}  Bc2 {[%clk 0:00:46]} 19. Bf1 {[%clk 0:01:22]}  Bg6 {[%clk 0:00:45]} 20. Nb3 {[%clk 0:00:56]}  Nc2 {[%clk 0:00:44]} 21. Qf4 {[%clk 0:00:56]}  Nxe1 {[%clk 0:00:41]} 22. Nxe1 {[%clk 0:00:57]}  f6 {[%clk 0:00:41]} 23. Bd2 {[%clk 0:00:52]}  fxe5 {[%clk 0:00:40]} 24. Qxe5 {[%clk 0:00:53]}  Bf6 {[%clk 0:00:40]} 25. Qe3 {[%clk 0:00:52]}  Nc6 {[%clk 0:00:38]} 26. Bh3 {[%clk 0:00:50]}  Rce8 {[%clk 0:00:37]} 27. Nd3 {[%clk 0:00:48]}  Bf5 {[%clk 0:00:34]} 28. Bg2 {[%clk 0:00:46]}  Qd6 {[%clk 0:00:29]} 29. Re1 {[%clk 0:00:44]}  h6 {[%clk 0:00:28]} 30. Bc3 {[%clk 0:00:37]}  Bxd3 {[%clk 0:00:26]} 31. Qxd3 {[%clk 0:00:36]}  Nb4 {[%clk 0:00:25]} 32. Qb1 {[%clk 0:00:35]}  a5 {[%clk 0:00:24]} 33. a3 {[%clk 0:00:35]}  Nc6 {[%clk 0:00:24]} 34. Nd2 {[%clk 0:00:33]}  g5 {[%clk 0:00:24]} 35. Qg6+ {[%clk 0:00:32]}  Bg7 {[%clk 0:00:17]} 36. Nf3 {[%clk 0:00:19]}  Re7 {[%clk 0:00:17]} 37. Ne5 {[%clk 0:00:17]}  Nxe5 {[%clk 0:00:17]} 38. dxe5 {[%clk 0:00:17]}  Qc5 {[%clk 0:00:17]} 39. Re2 {[%clk 0:00:15]}  d4 {[%clk 0:00:14]} 40. Be1 {[%clk 0:00:14]}  d3 {[%clk 0:00:12]} 41. Qxd3 {[%clk 0:00:14]}  Ref7 {[%clk 0:00:11]} 42. Qg6 {[%clk 0:00:13]}  Qc1 {[%clk 0:00:06]} 43. Be4 {[%clk 0:00:12]}  Rxf2 {[%clk 0:00:03]} 44. Qh7+ {[%clk 0:00:12]}  Kf7 {[%clk 0:00:03]} 45. Kxf2 {[%clk 0:00:12]}  Ke7+ {[%clk 0:00:03]} 46. Kg2 {[%clk 0:00:11]}  Rf7 {[%clk 0:00:03]} 47. Qg6 {[%clk 0:00:11]} 1-0


[Site "https://www.chess.com"]